[Event "NOR-chT Eliteserien 2021-22"]
[Site "Norway"]
[Date "2022.02.06"]
[Round "6.9"]
[White "Risting, Eivind Olav"]
[Black "Lund, Gunnar"]
[Result "0-1"]
[ECO "A55"]
[WhiteElo "2311"]
[BlackElo "2307"]
[Annotator "ChessBase"]
[PlyCount "126"]
[EventDate "2021.10.29"]
[EventType "team-tourn"]
[EventCountry "NOR"]
[SourceTitle "playchess.com"]
[Source "ChessBase"]
[SourceQuality "1"]
[TimeControl "40/5400+30:1800+30"]

1. d4 {[%emt 0:00:06]} Nf6 {[%emt 0:00:22]} 2. c4 {[%emt 0:00:18]} d6 {[%emt 0:00:13]} 3. Nf3 {[%emt 0:02:58]} Nbd7 {[%emt 0:00:34]} 4. g3 {[%emt 0:00:33]} e5 {[%emt 0:00:11]} 5. Bg2 {[%emt 0:00:13]} Be7 {[%emt 0:00:16]} 6. Nc3 {[%emt 0:00:50]} O-O {[%emt 0:01:46]} 7. O-O {[%emt 0:00:30]} c6 {[%emt 0:01:12]} 8. e4 {[%emt 0:00:54]} Qc7 {[%emt 0:01:33]} 9. h3 {[%emt 0:02:46]} a6 {[%emt 0:05:58]} 10. a4 {[%emt 0:03:15]} a5 {[%emt 0:01:09]} 11. Be3 {[%emt 0:00:36]} Re8 {[%emt 0:01:44]} 12. Re1 {[%emt 0:01:13]} exd4 {[%emt 0:05:41]} 13. Nxd4 {[%emt 0:01:12]} Bf8 {[%emt 0:01:28]} 14. Qc2 {[%emt 0:03:38]} Nc5 {[%emt 0:01:07]} 15. Rad1 {[%emt 0:11:57]} Nfd7 {[%emt 0:06:30]} 16. f4 {[%emt 0:01:57]} Na6 {[%emt 0:01:39]} 17. Bf2 {[%emt 0:07:31]} Nb4 {[%emt 0:04:10]} 18. Qb1 {[%emt 0:04:27]} Nc5 {[%emt 0:03:30]} 19. g4 {[%emt 0:13:13]} Bd7 {[%emt 0:14:53]} 20. Bg3 {[%emt 0:03:47]} Rad8 {[%emt 0:07:55]} 21. Kh2 {[%emt 0:03:29]} Bc8 {[%emt 0:05:19]} 22. g5 {[%emt 0:02:46]} Qe7 {[%emt 0:03:46]} 23. Nf3 {[%emt 0:04:11]} Ne6 {[%emt 0:12:47]} 24. h4 {[%emt 0:03:07]} f6 {[%emt 0:00:31]} 25. f5 {[%emt 0:11:28]} Nc5 {[%emt 0:00:12]} 26. b3 {[%emt 0:01:24]} Qf7 {[%emt 0:02:16]} 27. Rd4 {[%emt 0:01:22]} g6 {[%emt 0:03:12]} 28. fxg6 {[%emt 0:09:17]} hxg6 {[%emt 0:00:58]} 29. Qd1 {[%emt 0:01:30]} Ne6 {[%emt 0:01:12]} 30. Rd2 {[%emt 0:00:26]} fxg5 {[%emt 0:00:31]} 31. Nxg5 {[%emt 0:01:42]} Nxg5 {[%emt 0:00:07]} 32. hxg5 {[%emt 0:00:10]} Qe7 {[%emt 0:02:30]} 33. Qf3 {[%emt 0:01:42]} Bg7 {[%emt 0:00:19]} 34. Qe3 {[%emt 0:01:02]} Be5 {[%emt 0:02:08]} 35. Kg1 {[%emt 0:00:26]} Na6 {[%emt 0:00:46]} 36. Ne2 {[%emt 0:01:14]} Nc5 {[%emt 0:00:41]} 37. Rf1 {[%emt 0:01:04]} Rf8 {[%emt 0:00:38]} 38. Rxf8+ {[%emt 0:00:29]} Rxf8 {[%emt 0:00:53]} 39. Nd4 {[%emt 0:00:43]} Bg4 {[%emt 0:01:22]} 40. Bxe5 {[%emt 0:00:28]} dxe5 {[%emt 0:03:11]} 41. Nc2 {[%emt 0:03:05]} Ne6 {[%emt 0:01:48]} 42. Qg3 {[%emt 0:03:04]} Qxg5 {[%emt 0:02:57]} 43. Ne3 {[%emt 0:01:01]} Bf3 {[%emt 0:02:46]} 44. Qxg5 {[%emt 0:01:36]} Nxg5 {[%emt 0:00:07]} 45. Rd7 {[%emt 0:01:33]} Rf7 {[%emt 0:01:02]} 46. Rd8+ {[%emt 0:00:26]} Kg7 {[%emt 0:01:03]} 47. Re8 {[%emt 0:03:59]} Bxg2 {[%emt 0:04:57]} 48. Kxg2 {[%emt 0:00:12]} Nxe4 {[%emt 0:00:23]} 49. Rxe5 {[%emt 0:00:24]} Nd2 {[%emt 0:00:25]} 50. Rxa5 {[%emt 0:01:57]} Re7 {[%emt 0:04:02]} 51. Ng4 {[%emt 0:03:31]} Nxb3 {[%emt 0:00:13]} 52. Ra7 {[%emt 0:00:18]} Nc5 {[%emt 0:07:01]} 53. Kf3 {[%emt 0:01:12]} Kf7 {[%emt 0:01:02]} 54. Ra5 {[%emt 0:02:01]} Nd7 {[%emt 0:01:17]} 55. Kf4 {[%emt 0:01:28]} Ke6 {[%emt 0:00:53]} 56. Kg5 {[%emt 0:00:39]} Kd6 {[%emt 0:00:18]} 57. Kxg6 {[%emt 0:01:37]} Ne5+ {[%emt 0:02:27]} 58. Nxe5 {[%emt 0:01:25]} Rxe5 {[%emt 0:00:09]} 59. Ra7 {[%emt 0:00:16]} Kc7 {[%emt 0:00:12]} 60. Kf6 {[%emt 0:01:07]} Rc5 {[%emt 0:01:16]} 61. Ra8 {[%emt 0:00:30]} Rxc4 {[%emt 0:00:23]} 62. Ke5 {[%emt 0:00:21]} Rc5+ {[%emt 0:01:36]} 63. Kd4 {[%emt 0:00:09]} Kb6 {[%emt 0:00:14]} 0-1

[Event "NOR-chT Eliteserien 2021-22"]
[Site "Norway"]
[Date "2022.02.06"]
[Round "6.10"]
[White "Royset, Pal"]
[Black "Lindbol, Aleksander"]
[Result "0-1"]
[ECO "B12"]
[WhiteElo "2146"]
[BlackElo "2222"]
[Annotator "ChessBase"]
[PlyCount "212"]
[EventDate "2021.10.29"]
[EventType "team-tourn"]
[EventCountry "NOR"]
[SourceTitle "playchess.com"]
[Source "ChessBase"]
[SourceQuality "1"]
[TimeControl "40/5400+30:1800+30"]

1. e4 {[%emt 0:00:34]} c6 {[%emt 0:00:21]} 2. d4 {[%emt 0:00:53]} d5 {[%emt 0:00:18]} 3. e5 {[%emt 0:00:11]} c5 {[%emt 0:01:06]} 4. c3 {[%emt 0:00:46]} Nc6 {[%emt 0:00:10]} 5. Nf3 {[%emt 0:00:14]} cxd4 {[%emt 0:00:37]} 6. cxd4 {[%emt 0:00:19]} Bg4 {[%emt 0:00:10]} 7. Be2 {[%emt 0:03:31]} e6 {[%emt 0:02:18]} 8. Nbd2 {[%emt 0:03:06]} Qb6 {[%emt 0:02:55]} 9. O-O {[%emt 0:02:48]} Nge7 {[%emt 0:02:01]} 10. Qa4 {[%emt 0:04:51]} Nf5 {[%emt 0:22:59]} 11. Rd1 {[%emt 0:04:13]} Qb4 {[%emt 0:11:43]} 12. Qxb4 {[%emt 0:02:25]} Bxb4 {[%emt 0:00:48]} 13. h3 {[%emt 0:01:10]} Bxd2 {[%emt 0:02:00]} 14. hxg4 {[%emt 0:00:14]} Bxc1 {[%emt 0:00:03]} 15. gxf5 {[%emt 0:02:05]} Bh6 {[%emt 0:19:23]} 16. fxe6 {[%emt 0:05:29]} fxe6 {[%emt 0:00:07]} 17. Ne1 {[%emt 0:07:26]} a6 {[%emt 0:02:03]} 18. Bg4 {[%emt 0:04:06]} Ke7 {[%emt 0:02:28]} 19. b4 {[%emt 0:02:18]} Rac8 {[%emt 0:12:09]} 20. a3 {[%emt 0:04:16]} Na7 {[%emt 0:04:03]} 21. Rd3 {[%emt 0:08:56]} Rc4 {[%emt 0:01:34]} 22. g3 {[%emt 0:02:58]} Nc6 {[%emt 0:02:31]} 23. Nf3 {[%emt 0:01:54]} Rf8 {[%emt 0:00:56]} 24. Ra2 {[%emt 0:02:30]} Na7 {[%emt 0:00:52]} 25. Kg2 {[%emt 0:03:39]} Rfc8 {[%emt 0:00:47]} 26. Ne1 {[%emt 0:07:18]} Nb5 {[%emt 0:00:49]} 27. Nf3 {[%emt 0:00:05]} Rc3 {[%emt 0:04:35]} 28. Rxc3 {[%emt 0:03:24]} Rxc3 {[%emt 0:00:02]} 29. a4 {[%emt 0:01:00]} Ra3 {[%emt 0:00:04]} 30. Rxa3 {[%emt 0:03:38]} Nxa3 {[%emt 0:00:05]} 31. Kf1 {[%emt 0:02:54]} Nc2 {[%emt 0:01:01]} 32. b5 {[%emt 0:00:31]} axb5 {[%emt 0:00:48]} 33. axb5 {[%emt 0:00:05]} b6 {[%emt 0:00:36]} 34. Ke2 {[%emt 0:00:46]} Na3 {[%emt 0:00:21]} 35. Kd3 {[%emt 0:01:10]} Nxb5 {[%emt 0:01:32]} 36. Ne1 {[%emt 0:01:27]} g6 {[%emt 0:01:26]} 37. f4 {[%emt 0:01:17]} Kd7 {[%emt 0:00:50]} 38. Bh3 {[%emt 0:02:01]} Nc7 {[%emt 0:00:26]} 39. Kc3 {[%emt 0:02:58]} Nb5+ {[%emt 0:00:52]} 40. Kd3 {[%emt 0:00:07]} Nc7 {[%emt 0:00:03]} 41. Kc3 {[%emt 0:32:50]} Bf8 {[%emt 0:05:50]} 42. Nf3 {[%emt 0:00:00]} b5 {[%emt 0:03:58]} 43. Bf1 {[%emt 0:00:00]} Be7 {[%emt 0:00:18]} 44. Bd3 {[%emt 0:00:00]} Kc6 {[%emt 0:01:13]} 45. g4 {[%emt 0:00:00]} Na8 {[%emt 0:04:21]} 46. g5 {[%emt 0:00:00]} Kb6 {[%emt 0:04:30]} 47. Nh2 {[%emt 0:00:00]} Nc7 {[%emt 0:01:37]} 48. Ng4 {[%emt 0:00:00]} Ne8 {[%emt 0:00:39]} 49. Kb3 {[%emt 0:00:00]} Ka5 {[%emt 0:00:50]} 50. Bb1 {[%emt 0:00:00]} b4 {[%emt 0:04:21]} 51. Bd3 {[%emt 0:00:00]} Kb6 {[%emt 0:03:36]} 52. Ka4 {[%emt 0:00:00]} Bf8 {[%emt 0:01:45]} 53. Bc2 {[%emt 0:00:00]} Kc7 {[%emt 0:04:37]} 54. Bd3 {[%emt 0:00:00]} Be7 {[%emt 0:00:06]} 55. Kb3 {[%emt 0:04:41]} Kd8 {[%emt 0:00:28]} 56. Nh6 {[%emt 0:05:09]} Ng7 {[%emt 0:00:48]} 57. Ng8 {[%emt 0:01:09]} Nh5 {[%emt 0:00:58]} 58. Nxe7 {[%emt 0:00:43]} Kxe7 {[%emt 0:00:04]} 59. Kxb4 {[%emt 0:00:23]} Nxf4 {[%emt 0:00:02]} 60. Bf1 {[%emt 0:00:09]} Nh5 {[%emt 0:00:58]} 61. Kc3 {[%emt 0:02:08]} Ng3 {[%emt 0:00:14]} 62. Bg2 {[%emt 0:00:26]} Ne2+ {[%emt 0:00:12]} 63. Kd2 {[%emt 0:00:22]} Nxd4 {[%emt 0:00:05]} 64. Ke3 {[%emt 0:00:03]} Nf5+ {[%emt 0:01:29]} 65. Kf4 {[%emt 0:00:05]} Kd7 {[%emt 0:01:10]} 66. Bf1 {[%emt 0:00:12]} Kc6 {[%emt 0:00:22]} 67. Ba6 {[%emt 0:00:32]} Ne7 {[%emt 0:00:39]} 68. Ke3 {[%emt 0:01:41]} Kc5 {[%emt 0:00:26]} 69. Kf4 {[%emt 0:00:18]} Kd4 {[%emt 0:00:12]} 70. Bb7 {[%emt 0:00:10]} Kc3 {[%emt 0:00:12]} 71. Ba6 {[%emt 0:00:20]} d4 {[%emt 0:00:05]} 72. Ke4 {[%emt 0:00:28]} Nd5 {[%emt 0:00:19]} 73. Bb5 {[%emt 0:01:26]} Nb4 {[%emt 0:00:18]} 74. Bd7 {[%emt 0:00:22]} d3 {[%emt 0:00:09]} 75. Bxe6 {[%emt 0:00:07]} d2 {[%emt 0:00:10]} 76. Bg4 {[%emt 0:00:16]} Kc4 {[%emt 0:03:00]} 77. e6 {[%emt 0:01:05]} Nc6 {[%emt 0:00:05]} 78. Bf3 {[%emt 0:02:52]} Kc5 {[%emt 0:00:46]} 79. Ke3 {[%emt 0:01:01]} Kd6 {[%emt 0:00:04]} 80. Kxd2 {[%emt 0:00:13]} Ne5 {[%emt 0:00:04]} 81. Bd1 {[%emt 0:00:40]} Kxe6 {[%emt 0:00:15]} 82. Ke3 {[%emt 0:00:34]} Kf5 {[%emt 0:00:10]} 83. Bb3 {[%emt 0:00:48]} Kxg5 {[%emt 0:00:06]} 84. Ke4 {[%emt 0:00:10]} Ng4 {[%emt 0:00:05]} 85. Be6 {[%emt 0:00:15]} h5 {[%emt 0:00:06]} 86. Kf3 {[%emt 0:00:21]} Nf6 {[%emt 0:00:29]} 87. Kg3 {[%emt 0:00:17]} Ne4+ {[%emt 0:00:24]} 88. Kh3 {[%emt 0:00:26]} Kf6 {[%emt 0:00:10]} 89. Bd5 {[%emt 0:00:10]} Nd6 {[%emt 0:00:04]} 90. Bf3 {[%emt 0:00:14]} Nf5 {[%emt 0:00:14]} 91. Bd1 {[%emt 0:00:19]} Kg5 {[%emt 0:00:04]} 92. Be2 {[%emt 0:00:26]} Kf4 {[%emt 0:00:19]} 93. Bd1 {[%emt 0:00:14]} h4 {[%emt 0:00:08]} 94. Be2 {[%emt 0:00:24]} Nd4 {[%emt 0:01:36]} 95. Bg4 {[%emt 0:00:20]} g5 {[%emt 0:00:05]} 96. Bc8 {[%emt 0:00:04]} Nf5 {[%emt 0:00:05]} 97. Bb7 {[%emt 0:00:22]} g4+ {[%emt 0:00:04]} 98. Kh2 {[%emt 0:00:03]} Kg5 {[%emt 0:00:39]} 99. Be4 {[%emt 0:00:16]} Ne7 {[%emt 0:00:08]} 100. Bb7 {[%emt 0:00:09]} Ng6 {[%emt 0:00:05]} 101. Bc6 {[%emt 0:00:32]} Nf4 {[%emt 0:00:07]} 102. Bb7 {[%emt 0:00:13]} g3+ {[%emt 0:00:05]} 103. Kg1 {[%emt 0:00:15]} h3 {[%emt 0:03:55]} 104. Bc6 {[%emt 0:00:14]} Nd3 {[%emt 0:00:06]} 105. Kf1 {[%emt 0:00:45]} Nf2 {[%emt 0:00:05]} 106. Bd5 {[%emt 0:01:06]} Kf4 {[%emt 0:00:04]} 0-1

[Event "NOR-chT Eliteserien 2021-22"]
[Site "Norway"]
[Date "2022.02.06"]
[Round "6.11"]
[White "Kjolberg, Jens Hjorth"]
[Black "Royset, Jon Kr."]
[Result "0-1"]
[ECO "A90"]
[WhiteElo "2154"]
[BlackElo "2218"]
[Annotator "ChessBase"]
[PlyCount "118"]
[EventDate "2021.10.29"]
[EventType "team-tourn"]
[EventCountry "NOR"]
[SourceTitle "playchess.com"]
[Source "ChessBase"]
[SourceQuality "1"]
[TimeControl "40/5400+30:1800+30"]

1. d4 {[%emt 0:00:03]} f5 {[%emt 0:01:09]} 2. c4 {[%emt 0:00:15]} e6 {[%emt 0:00:27]} 3. g3 {[%emt 0:01:59]} Nf6 {[%emt 0:00:08]} 4. Bg2 {[%emt 0:00:23]} c6 {[%emt 0:00:51]} 5. Nf3 {[%emt 0:00:38]} d5 {[%emt 0:00:14]} 6. O-O {[%emt 0:00:04]} Bd6 {[%emt 0:00:07]} 7. Qc2 {[%emt 0:03:24]} O-O {[%emt 0:00:26]} 8. Nc3 {[%emt 0:00:11]} Qe8 {[%emt 0:01:14]} 9. Rb1 {[%emt 0:03:20]} Nbd7 {[%emt 0:10:57]} 10. b4 {[%emt 0:03:43]} Ne4 {[%emt 0:08:49]} 11. b5 {[%emt 0:02:08]} a6 {[%emt 0:03:00]} 12. bxc6 {[%emt 0:02:23]} bxc6 {[%emt 0:00:07]} 13. Bf4 {[%emt 0:17:00]} Bxf4 {[%emt 0:04:47]} 14. gxf4 {[%emt 0:00:04]} Nxc3 {[%emt 0:00:51]} 15. Qxc3 {[%emt 0:00:13]} a5 {[%emt 0:00:06]} 16. cxd5 {[%emt 0:15:24]} cxd5 {[%emt 0:00:07]} 17. Qc6 {[%emt 0:00:40]} Ra6 {[%emt 0:05:36]} 18. Qc7 {[%emt 0:03:06]} Qd8 {[%emt 0:05:00]} 19. Rfc1 {[%emt 0:00:57]} Rb6 {[%emt 0:00:53]} 20. Rxb6 {[%emt 0:05:14]} Nxb6 {[%emt 0:00:35]} 21. Ne5 {[%emt 0:05:50]} Bd7 {[%emt 0:08:26]} 22. Nxd7 {[%emt 0:08:38]} Nxd7 {[%emt 0:00:24]} 23. Qd6 {[%emt 0:00:15]} Re8 {[%emt 0:03:43]} 24. Rc7 {[%emt 0:03:20]} Nf6 {[%emt 0:02:53]} 25. Qxd8 {[%emt 0:06:56]} Rxd8 {[%emt 0:00:09]} 26. Ra7 {[%emt 0:01:14]} Rb8 {[%emt 0:01:05]} 27. Bf3 {[%emt 0:01:22]} Rb4 {[%emt 0:00:45]} 28. Rxa5 {[%emt 0:00:30]} Rxd4 {[%emt 0:00:08]} 29. e3 {[%emt 0:00:15]} Rd2 {[%emt 0:00:38]} 30. Ra4 {[%emt 0:05:39]} Kf7 {[%emt 0:00:53]} 31. a3 {[%emt 0:03:03]} Ne8 {[%emt 0:05:21]} 32. Kf1 {[%emt 0:04:47]} Ke7 {[%emt 0:00:34]} 33. Be2 {[%emt 0:00:54]} Nc7 {[%emt 0:00:49]} 34. Rb4 {[%emt 0:00:28]} Ra2 {[%emt 0:00:40]} 35. Rb3 {[%emt 0:00:23]} Ne8 {[%emt 0:03:39]} 36. Bd3 {[%emt 0:00:51]} Nd6 {[%emt 0:00:26]} 37. Rc3 {[%emt 0:00:54]} h6 {[%emt 0:03:54]} 38. h4 {[%emt 0:00:44]} Kf6 {[%emt 0:02:40]} 39. Kg2 {[%emt 0:01:00]} Ke7 {[%emt 0:05:18]} 40. Rc7+ {[%emt 0:01:10]} Kf6 {[%emt 0:01:37]} 41. Rc3 {[%emt 0:01:14]} Ke7 {[%emt 0:13:07]} 42. Rc7+ {[%emt 0:00:22]} Kd8 {[%emt 0:01:48]} 43. Rc3 {[%emt 0:05:17]} Ne8 {[%emt 0:00:42]} 44. Bc2 {[%emt 0:08:38]} Nf6 {[%emt 0:01:01]} 45. Kg3 {[%emt 0:02:49]} d4 {[%emt 0:03:22]} 46. exd4 {[%emt 0:06:39]} Nd5 {[%emt 0:00:14]} 47. Rc5 {[%emt 0:00:36]} Rxa3+ {[%emt 0:00:12]} 48. f3 {[%emt 0:00:31]} Rc3 {[%emt 0:05:49]} 49. Rxc3 {[%emt 0:02:08]} Nxc3 {[%emt 0:00:06]} 50. Kf2 {[%emt 0:02:24]} Ke7 {[%emt 0:01:31]} 51. Bb3 {[%emt 0:01:07]} Kd6 {[%emt 0:00:31]} 52. Ke3 {[%emt 0:01:22]} Nd5+ {[%emt 0:08:04]} 53. Bxd5 {[%emt 0:00:49]} exd5 {[%emt 0:00:11]} 54. Kd3 {[%emt 0:00:55]} Kc6 {[%emt 0:00:07]} 55. Kc3 {[%emt 0:00:31]} Kb5 {[%emt 0:00:06]} 56. Kb3 {[%emt 0:01:37]} h5 {[%emt 0:00:26]} 57. Kc3 {[%emt 0:00:08]} Ka4 {[%emt 0:00:06]} 58. Kc2 {[%emt 0:00:39]} Kb4 {[%emt 0:00:12]} 59. Kd3 {[%emt 0:00:07]} Kb3 {[%emt 0:00:07]} 0-1

[Event "NOR-chT Eliteserien 2021-22"]
[Site "Norway"]
[Date "2022.02.06"]
[Round "6.12"]
[White "Machlik, Monika"]
[Black "Dahl, Max"]
[Result "1-0"]
[ECO "D31"]
[WhiteElo "2134"]
[BlackElo "2038"]
[Annotator "NA"]
[PlyCount "91"]
[EventDate "2021.10.29"]
[EventType "team-tourn"]
[EventCountry "NOR"]
[SourceTitle "playchess.com"]
[Source "ChessBase"]
[SourceQuality "1"]
[TimeControl "40/5400+30:1800+30"]

1. d4 {[%emt 0:00:01]} d5 {[%emt 0:00:46]} 2. c4 {[%emt 0:00:32]} e6 {[%emt 0:00:23]} 3. Nc3 {[%emt 0:02:05]} Be7 {[%emt 0:00:42]} 4. cxd5 {[%emt 0:00:22]} exd5 {[%emt 0:00:09]} 5. Bf4 {[%emt 0:00:06]} c6 {[%emt 0:00:40]} 6. e3 {[%emt 0:00:41]} Bf5 {[%emt 0:01:12]} 7. Nge2 {[%emt 0:02:16]} Nd7 {[%emt 0:03:10]} 8. Ng3 {[%emt 0:02:13]} Bg6 {[%emt 0:01:57]} 9. Be2 {[%emt 0:05:16]} Nf8 {[%emt 0:14:48]} 10. Bg4 $11 {[%emt 0:16:25]} Nf6 {[%emt 0:10:12]} 11. Bh3 {[%emt 0:02:20]} Ne6 {[%emt 0:12:37]} 12. Be5 {[%emt 0:16:23]} Ng5 {[%emt 0:07:55]} 13. Bf5 {[%emt 0:03:23]} Bxf5 {[%emt 0:09:01]} 14. Nxf5 {[%emt 0:00:10]} Bf8 {[%emt 0:06:53]} 15. h4 {[%emt 0:06:49]} Nge4 {[%emt 0:06:01]} 16. Nxe4 {[%emt 0:08:36]} Nxe4 {[%emt 0:06:19]} 17. Bxg7 {[%emt 0:04:03]} Rg8 {[%emt 0:02:57]} 18. Bxf8 {[%emt 0:02:42]} Kxf8 {[%emt 0:01:55]} 19. O-O {[%emt 0:10:32]} Qf6 {[%emt 0:02:54]} 20. Qh5 {[%emt 0:00:57]} Qg6 {[%emt 0:05:32]} 21. Qxg6 {[%emt 0:02:26]} hxg6 {[%emt 0:00:22]} 22. Ng3 {[%emt 0:00:40]} Nxg3 {[%emt 0:03:07]} 23. fxg3 {[%emt 0:00:02]} Re8 {[%emt 0:00:56]} 24. Rf3 {[%emt 0:04:13]} Re4 {[%emt 0:01:15]} 25. Raf1 {[%emt 0:00:22]} Rg7 {[%emt 0:00:43]} 26. Kf2 {[%emt 0:02:27]} Ke7 {[%emt 0:00:22]} 27. Rf4 {[%emt 0:00:48]} f5 {[%emt 0:00:36]} 28. Rxe4+ {[%emt 0:04:49]} dxe4 {[%emt 0:00:25]} 29. g4 {[%emt 0:00:59]} Ke6 {[%emt 0:00:33]} 30. Kg3 {[%emt 0:00:14]} Rf7 {[%emt 0:00:30]} 31. h5 {[%emt 0:01:43]} gxh5 {[%emt 0:00:34]} 32. Rxf5 {[%emt 0:01:14]} Rg7 {[%emt 0:00:32]} 33. Rxh5 {[%emt 0:00:23]} Kd6 {[%emt 0:00:18]} 34. Re5 {[%emt 0:00:34]} Rf7 {[%emt 0:00:35]} 35. Rxe4 {[%emt 0:00:20]} Kd5 {[%emt 0:00:11]} 36. Re5+ {[%emt 0:00:28]} Kc4 {[%emt 0:00:15]} 37. g5 {[%emt 0:00:20]} Kd3 {[%emt 0:00:27]} 38. g6 {[%emt 0:01:00]} Rg7 {[%emt 0:00:14]} 39. Re6 {[%emt 0:00:08]} Kc2 {[%emt 0:00:13]} 40. e4 {[%emt 0:00:47]} Kd3 {[%emt 0:01:44]} 41. Kf4 {[%emt 0:30:37]} Kxd4 {[%emt 0:30:25]} 42. Rd6+ {[%emt 0:00:00]} Kc5 {[%emt 0:00:00]} 43. e5 {[%emt 0:00:00]} b5 {[%emt 0:00:00]} 44. Kf5 {[%emt 0:00:00]} Rg8 {[%emt 0:00:00]} 45. Rd7 {[%emt 0:00:00]} Rf8+ {[%emt 0:00:00]} 46. Rf7 {[%emt 0:00:00]} 1-0

[Event "NOR-chT Eliteserien 2021-22"]
[Site "Norway"]
[Date "2022.02.06"]
[Round "6.17"]
[White "Kvisla, Johannes Luangtep"]
[Black "Nordquelle, Daniel"]
[Result "0-1"]
[ECO "D31"]
[WhiteElo "2212"]
[BlackElo "2130"]
[Annotator "ChessBase"]
[PlyCount "136"]
[EventDate "2021.10.29"]
[EventType "team-tourn"]
[EventCountry "NOR"]
[SourceTitle "playchess.com"]
[Source "ChessBase"]
[SourceQuality "1"]
[TimeControl "40/5400+30:1800+30"]

1. d4 {[%emt 0:00:03]} d5 {[%emt 0:00:10]} 2. c4 {[%emt 0:00:05]} e6 {[%emt 0:00:11]} 3. cxd5 {[%emt 0:00:05]} exd5 {[%emt 0:00:05]} 4. Nc3 {[%emt 0:00:06]} c6 {[%emt 0:00:16]} 5. Qc2 {[%emt 0:00:06]} g6 {[%emt 0:00:37]} 6. Nf3 {[%emt 0:00:16]} Bf5 {[%emt 0:01:24]} 7. Qb3 {[%emt 0:00:10]} Qb6 {[%emt 0:02:11]} 8. Bf4 {[%emt 0:00:39]} Qxb3 {[%emt 0:12:08]} 9. axb3 {[%emt 0:00:23]} Nd7 {[%emt 0:00:15]} 10. e3 {[%emt 0:00:30]} Ngf6 {[%emt 0:01:26]} 11. h3 {[%emt 0:03:58]} Bb4 {[%emt 0:08:53]} 12. Nd2 {[%emt 0:00:35]} O-O {[%emt 0:02:28]} 13. g4 {[%emt 0:00:38]} Be6 {[%emt 0:00:15]} 14. Bg2 {[%emt 0:03:41]} Rfe8 {[%emt 0:02:08]} 15. O-O {[%emt 0:00:36]} h5 {[%emt 0:07:59]} 16. f3 {[%emt 0:05:30]} hxg4 {[%emt 0:11:50]} 17. hxg4 {[%emt 0:00:15]} Nh7 {[%emt 0:11:33]} 18. Kf2 {[%emt 0:02:43]} Bf8 {[%emt 0:04:23]} 19. Rh1 {[%emt 0:01:38]} Bg7 {[%emt 0:01:55]} 20. b4 {[%emt 0:06:35]} g5 {[%emt 0:05:08]} 21. Bd6 {[%emt 0:00:42]} f5 {[%emt 0:07:55]} 22. gxf5 {[%emt 0:04:44]} Bxf5 {[%emt 0:00:04]} 23. Nb3 {[%emt 0:01:46]} Re6 {[%emt 0:02:45]} 24. Bg3 {[%emt 0:02:17]} Nhf6 {[%emt 0:02:01]} 25. Nc5 {[%emt 0:14:04]} Nxc5 {[%emt 0:00:31]} 26. bxc5 {[%emt 0:00:03]} Rf8 {[%emt 0:07:42]} 27. Rxa7 {[%emt 0:01:44]} Bd3 {[%emt 0:00:42]} 28. Bd6 {[%emt 0:03:13]} Ng4+ {[%emt 0:05:21]} 29. Kg3 {[%emt 0:01:08]} Nxe3 {[%emt 0:00:05]} 30. Bxf8 {[%emt 0:01:58]} Nf5+ {[%emt 0:00:51]} 31. Kh2 {[%emt 0:00:59]} Kxf8 {[%emt 0:01:08]} 32. Rd1 {[%emt 0:06:52]} Rh6+ {[%emt 0:01:00]} 33. Bh3 {[%emt 0:00:06]} Bc2 {[%emt 0:00:17]} 34. Re1 {[%emt 0:02:20]} Nh4 {[%emt 0:01:05]} 35. Kg3 {[%emt 0:00:47]} Bxd4 {[%emt 0:00:42]} 36. Rxb7 {[%emt 0:01:54]} Ng6 {[%emt 0:00:31]} 37. Ra1 {[%emt 0:04:55]} Ne7 {[%emt 0:00:31]} 38. Kg2 {[%emt 0:07:29]} Bxc5 {[%emt 0:00:19]} 39. Nxd5 {[%emt 0:02:50]} cxd5 {[%emt 0:00:33]} 40. Rc1 {[%emt 0:00:34]} g4 {[%emt 0:00:13]} 41. Bxg4 {[%emt 0:34:34]} Bd6 {[%emt 0:01:46]} 42. Kg1 {[%emt 0:00:00]} Bh2+ {[%emt 0:14:11]} 43. Kg2 {[%emt 0:00:00]} Bf4 {[%emt 0:01:51]} 44. Re1 {[%emt 0:00:00]} Rh7 {[%emt 0:00:24]} 45. Rd7 {[%emt 0:00:00]} Ba4 {[%emt 0:06:59]} 46. Rd8+ {[%emt 0:00:00]} Kf7 {[%emt 0:00:26]} 47. Ra8 {[%emt 0:00:00]} Rh2+ {[%emt 0:03:00]} 48. Kg1 {[%emt 0:00:00]} Bb5 {[%emt 0:00:03]} 49. Be6+ {[%emt 0:00:06]} Kg7 {[%emt 0:01:34]} 50. Ra7 {[%emt 0:06:45]} Kf6 {[%emt 0:00:54]} 51. Rxe7 {[%emt 0:05:04]} Kxe7 {[%emt 0:00:06]} 52. Bxd5+ {[%emt 0:00:05]} Kf6 {[%emt 0:07:27]} 53. Re4 {[%emt 0:03:05]} Bc7 {[%emt 0:00:00]} 54. Bc4 {[%emt 0:04:10]} Bd7 {[%emt 0:00:00]} 55. Re2 {[%emt 0:01:22]} Rh4 {[%emt 0:00:00]} 56. b3 {[%emt 0:00:15]} Bb6+ {[%emt 0:00:00]} 57. Kg2 {[%emt 0:00:07]} Rh7 {[%emt 0:00:05]} 58. Rd2 {[%emt 0:01:23]} Rg7+ {[%emt 0:00:39]} 59. Kf1 {[%emt 0:00:37]} Ke5 {[%emt 0:00:30]} 60. Ke2 {[%emt 0:02:09]} Kf4 {[%emt 0:00:28]} 61. Rd6 {[%emt 0:00:34]} Bc5 {[%emt 0:00:34]} 62. Rf6+ {[%emt 0:00:15]} Ke5 {[%emt 0:00:14]} 63. Ra6 {[%emt 0:00:30]} Rg2+ {[%emt 0:00:17]} 64. Ke1 {[%emt 0:00:53]} Bb4+ {[%emt 0:00:34]} 65. Kf1 {[%emt 0:00:14]} Rb2 {[%emt 0:00:19]} 66. Rh6 {[%emt 0:01:14]} Kf4 {[%emt 0:00:21]} 67. Rh7 {[%emt 0:00:59]} Bf5 {[%emt 0:00:32]} 68. Rh4+ {[%emt 0:00:25]} Kg3 {[%emt 0:00:42]} 0-1